[Event "Satka Autumn 2017"]
[Site "Satka"]
[Date "2017.09.19"]
[Round "8"]
[White "Nasybullina, Dayana"]
[Black "Lomakina, Galja"]
[Result "1/2-1/2"]
[ECO "B13"]
[WhiteElo "1724"]
[BlackElo "1962"]
[Annotator "NA RC"]
[PlyCount "185"]
[EventDate "2017.??.??"]
[EventType "swiss"]
[EventCountry "RUS"]
[SourceTitle "playchess.com"]
[Source "ChessBase"]
[SourceQuality "1"]
[TimeControl "5400+30"]

1. e4 {[%emt 0:00:00]} c6 {[%emt 0:00:07]} 2. d4 {[%emt 0:00:38]} d5 {[%emt 0:00:10]} 3. exd5 {[%emt 0:00:05]} cxd5 {[%emt 0:00:03]} 4. Bd3 {[%emt 0:00:12]} Nf6 {[%emt 0:00:34]} 5. h3 {[%emt 0:00:24]} Nc6 {[%emt 0:00:29]} 6. c3 {[%emt 0:00:08]} g6 {[%emt 0:00:20]} 7. Qc2 {[%emt 0:01:29] B13: Caro-Kann: Exchange Variation and Panov-Botvinnik Attack} (7. Nf3 Bf5 8. Be2 Bg7 9. O-O O-O 10. Bf4 Nh5 11. Be3 Qc7 12. Re1 Rad8 13. Na3 Nf4 14. Bf1 a6 {1-0 (31) Caruana,F (2807)-Navara,D (2737) Saint Louis 2017}) 7... Bg7 {[%emt 0:01:20]} 8. Bf4 {[%emt 0:00:14]} O-O {[%emt 0:00:49]} 9. Nf3 {[%emt 0:00:56]} Nh5 {[%emt 0:06:12]} 10. Bh2 {[%emt 0:01:44]} Bh6 {[%emt 0:00:25]} 11. O-O {[%emt 0:05:21]} Nf4 {[%emt 0:00:52]} 12. Bxf4 {[%emt 0:02:31]} Bxf4 {[%emt 0:00:08]} 13. Nbd2 {[%emt 0:01:17]} Qd6 {[%emt 0:02:36]} 14. Rfe1 {[%emt 0:04:27]} Qf6 $146 {[%emt 0:00:30]} ({Find the theoretical novelty and annotate with similar games:} 14... Bd7) 15. Nb3 {[%emt 0:10:16]} Bd6 {[%emt 0:01:05]} 16. Qe2 {[%emt 0:02:52]} Bf5 {[%emt 0:01:22]} 17. Ne5 {[%emt 0:02:42]} Bxd3 {[%emt 0:12:27]} 18. Qxd3 {[%emt 0:02:51]} Rfd8 {[%emt 0:06:09]} 19. Qe3 {[%emt 0:04:57]} e6 {[%emt 0:07:22]} 20. Nd2 {[%emt 0:02:18]} Bxe5 {[%emt 0:05:35]} 21. dxe5 {[%emt 0:00:26]} Qg7 {[%emt 0:00:27]} 22. Nb3 {[%emt 0:01:47]} a6 {[%emt 0:03:59]} 23. Rac1 {[%emt 0:01:42]} b5 {[%emt 0:02:30]} 24. Nd4 {[%emt 0:06:28]} Na5 {[%emt 0:00:14]} 25. Qe2 {[%emt 0:01:23]} Rdc8 {[%emt 0:01:39]} 26. b3 {[%emt 0:04:25]} Qf8 {[%emt 0:00:54]} 27. Qd2 {[%emt 0:02:09]} Nb7 {[%emt 0:02:06]} 28. b4 {[%emt 0:06:29]} Rc4 {[%emt 0:01:42]} 29. h4 {[%emt 0:01:49]} h5 {[%emt 0:02:51]} 30. Re3 {[%emt 0:03:22]} Qh6 {[%emt 0:02:20]} 31. Qe1 {[%emt 0:04:01]} Rac8 {[%emt 0:00:22]} 32. Ra1 {[%emt 0:01:33]} Nd8 {[%emt 0:01:54]} 33. a4 {[%emt 0:03:02]} bxa4 {[%emt 0:00:55]} 34. Rxa4 {[%emt 0:01:05]} ({White should try} 34. g3) 34... Nc6 {[%emt 0:01:25]} 35. Nxc6 {[%emt 0:10:53]} R8xc6 {[%emt 0:00:21]} ({But not} 35... R4xc6 36. Ra1 $11) 36. Qe2 {[%emt 0:06:05]} Qf4 {[%emt 0:06:20]} ({Better is} 36... Rxc3 $19 37. Rxc3 Rxc3) 37. g3 {[%emt 0:02:20]} Qf5 {[%emt 0:02:24]} 38. Kg2 {[%emt 0:00:42]} Qb1 {[%emt 0:06:04]} 39. Qa2 {[%emt 0:02:07]} Qxa2 {[%emt 0:02:43]} 40. Rxa2 {[%emt 0:00:05]} Kf8 {[%emt 0:00:14]} 41. Kf1 {[%emt 0:01:17]} Ke7 $11 {[%emt 0:01:54]} 42. Rd3 {[%emt 0:01:12]} Re4 {[%emt 0:01:57]} 43. Re2 {[%emt 0:00:50]} Rec4 {[%emt 0:01:17]} 44. Ra2 {[%emt 0:00:24]} Rb6 {[%emt 0:01:17]} 45. f3 {[%emt 0:00:33]} Rbc6 {[%emt 0:00:12]} 46. Ke2 {[%emt 0:00:30]} Kd7 {[%emt 0:00:14]} 47. Kd2 {[%emt 0:00:13]} Kc7 {[%emt 0:00:17]} 48. Rc2 {[%emt 0:00:58]} Kb6 {[%emt 0:00:17]} 49. Rd4 {[%emt 0:00:30]} Kb5 {[%emt 0:00:30]} 50. Rd3 {[%emt 0:00:43]} Rc8 {[%emt 0:00:45]} 51. Ra2 {[%emt 0:00:11]} Rd8 {[%emt 0:00:43]} 52. Ra5+ {[%emt 0:00:17]} Kb6 {[%emt 0:00:01]} 53. Rd4 {[%emt 0:00:21]} Rc7 {[%emt 0:02:55]} 54. Ra3 {[%emt 0:00:53]} Rg8 {[%emt 0:01:14]} 55. f4 {[%emt 0:00:29]} Rgc8 {[%emt 0:00:15]} 56. Kd3 {[%emt 0:00:45]} Rf8 {[%emt 0:01:32]} 57. c4 {[%emt 0:00:38]} dxc4+ {[%emt 0:00:29]} 58. Rxc4 {[%emt 0:00:03]} Rd8+ {[%emt 0:01:02]} 59. Kc3 {[%emt 0:00:05]} Rcd7 {[%emt 0:00:37]} 60. Kb3 {[%emt 0:00:28]} Rd3+ {[%emt 0:00:46]} 61. Rc3 {[%emt 0:00:08]} R3d4 {[%emt 0:01:39]} 62. Rc4 {[%emt 0:00:21]} Rd1 {[%emt 0:00:23]} 63. Rc3 {[%emt 0:01:11]} R8d4 {[%emt 0:00:21]} 64. Ka4 {[%emt 0:01:11]} a5 {[%emt 0:00:50]} 65. Rcb3 {[%emt 0:00:19]} Rc4 {[%emt 0:01:31]} 66. Ra2 {[%emt 0:00:15]} Rd5 {[%emt 0:01:59]} 67. Ka3 {[%emt 0:00:58]} axb4+ {[%emt 0:01:31]} 68. Rxb4+ {[%emt 0:00:04]} Rxb4 {[%emt 0:00:13]} 69. Kxb4 {[%emt 0:00:04]} Rd3 {[%emt 0:00:05]} 70. Rg2 {[%emt 0:00:23]} Kc6 {[%emt 0:00:26]} 71. Kc4 {[%emt 0:00:05]} Ra3 {[%emt 0:00:42]} 72. Kd4 {[%emt 0:00:19]} Kb5 {[%emt 0:01:00]} 73. Rb2+ {[%emt 0:00:24]} Kc6 {[%emt 0:00:38]} 74. Rc2+ {[%emt 0:00:13]} Kb7 {[%emt 0:00:13]} 75. Rc3 {[%emt 0:00:11]} Rxc3 {[%emt 0:02:07]} 76. Kxc3 {[%emt 0:00:05]} Kc7 {[%emt 0:01:28]} 77. Kd2 {[%emt 0:02:54]} Kb6 {[%emt 0:00:22]} 78. Ke3 {[%emt 0:00:44]} Kc5 {[%emt 0:00:24]} 79. Kf3 {[%emt 0:00:20]} Kd4 {[%emt 0:01:38]} 80. g4 {[%emt 0:00:29]} Kd3 {[%emt 0:00:58]} 81. gxh5 {[%emt 0:00:36]} gxh5 {[%emt 0:00:17]} 82. f5 {[%emt 0:00:15]} Kd4 {[%emt 0:01:41]} 83. Kf4 {[%emt 0:00:18]} Kd5 {[%emt 0:00:16]} 84. fxe6 {[%emt 0:00:57]} fxe6 {[%emt 0:00:07]} 85. Kg5 {[%emt 0:00:21]} Kxe5 {[%emt 0:00:06]} 86. Kg6 {[%emt 0:00:33]} Kf4 {[%emt 0:00:21]} 87. Kxh5 {[%emt 0:00:06]} Kf5 {[%emt 0:00:17]} 88. Kh6 {[%emt 0:00:04]} e5 {[%emt 0:00:06]} 89. h5 {[%emt 0:00:17]} Kf6 {[%emt 0:00:38]} 90. Kh7 {[%emt 0:00:05]} e4 {[%emt 0:00:37]} 91. h6 {[%emt 0:00:03]} Kf7 {[%emt 0:02:31]} 92. Kh8 {[%emt 0:00:06]} e3 {[%emt 0:01:15]} 93. h7 {[%emt 0:00:05]} 1/2-1/2

[Event "Satka Autumn 2017"]
[Site "Satka"]
[Date "2017.09.20"]
[Round "9"]
[White "Gutkovich, Polina"]
[Black "Mukhina, Jana"]
[Result "0-1"]
[ECO "D10"]
[WhiteElo "2012"]
[BlackElo "1923"]
[Annotator "NA RC"]
[PlyCount "80"]
[EventDate "2017.??.??"]
[EventType "swiss"]
[EventCountry "RUS"]
[SourceTitle "playchess.com"]
[Source "ChessBase"]
[SourceQuality "1"]
[TimeControl "5400+30"]

{[%evp 17,80,-43,-15,-58,-59,-84,-76,-104,-72,-94,-84,-90,35,-37,33,5,96,32767,32767,32767,32767,32767,-54,-45,-50,-73,32767,32767,-60,-110,-104,-253,-278,-336,-414,-389,-581,-494,-579,-789,-813,-829,-927,-1136,-720,-965,-1158,-1841,-2695,-1915,-2571,-29991,-29992,-29993,-29992,-29992,-542,-914,32767,32767,32767,-5401,-29979,-29983,-11408]} 1. d4 {[%emt 0:00:00]} d5 {[%emt 0:03:19]} 2. c4 {[%emt 0:00:00]} c6 {[%emt 0:00:05]} 3. Nc3 {[%emt 0:00:00]} dxc4 {[%emt 0:00:04]} 4. a4 {[%emt 0:00:24]} e5 {[%emt 0:00:09]} 5. dxe5 {[%emt 0:05:46]} Qxd1+ {[%emt 0:00:02]} 6. Nxd1 {[%emt 0:01:28]} Be6 {[%emt 0:05:03] D10: Slav Defence: 3 cxd5 (without early Nf3) and 3 Nc3} (6... Nd7 7. Nf3 Bb4+ 8. Nc3 Nc5 9. Nd4 Ne4 10. Bd2 Nxd2 11. Kxd2 f6 12. exf6 Nxf6 13. f3 a6 14. e4 {1-0 (49) Pascua,H (2386)-Gomez,J (2520) Tagaytay City 2013}) 7. e4 {[%emt 0:04:20]} Na6 {[%emt 0:12:15]} 8. f4 {[%emt 0:05:47]} Nb4 {[%emt 0:18:10]} 9. Ne3 {[%emt 0:04:20]} Bc5 {[%emt 0:00:54]} 10. f5 $146 {[%emt 0:16:25]} ({Predecessor:} 10. Rb1 Nd3+ 11. Bxd3 cxd3 12. b3 g6 13. Nf3 O-O-O 14. Ng5 {½-½ (37) Goreacinic,D (2317)-Geske,J (2383) Offenbach 2012}) 10... Bxe3 {[%emt 0:02:19]} 11. Bxe3 {[%emt 0:00:02]} Nc2+ {[%emt 0:10:38]} 12. Kd2 {[%emt 0:00:05]} Nxa1 {[%emt 0:00:13]} 13. fxe6 {[%emt 0:00:02]} Nb3+ {[%emt 0:01:50]} ({Don't play} 13... fxe6 $6 14. Bxc4 Rd8+ 15. Kc1 $16) 14. Kc3 {[%emt 0:00:05]} Na5 {[%emt 0:00:36]} (14... b5 $17 15. exf7+ Kxf7) 15. Nf3 {[%emt 0:02:22]} (15. exf7+ $11 Kxf7 16. Nf3) 15... Nh6 {[%emt 0:08:26]} 16. Ng5 {[%emt 0:05:14]} f6 {[%emt 0:01:40]} (16... b6 $11) 17. exf6 {[%emt 0:06:07]} gxf6 {[%emt 0:00:01]} 18. Nf3 {[%emt 0:00:08]} Ng4 {[%emt 0:00:36]} 19. Bd4 {[%emt 0:00:38]} Ke7 {[%emt 0:04:56]} 20. h3 {[%emt 0:02:24]} Ne5 $1 {[%emt 0:01:07]} 21. Nxe5 {[%emt 0:05:32]} fxe5 {[%emt 0:00:05]} 22. Bxe5 {[%emt 0:00:06]} Rhg8 $1 {[%emt 0:01:05]} 23. Be2 {[%emt 0:00:49]} Rxg2 {[%emt 0:01:37]} 24. Bg4 {[%emt 0:00:05]} (24. Bf3 $17 Rgg8 25. Bg4) 24... Rd8 {[%emt 0:01:34]} 25. Kb4 {[%emt 0:12:54]} b6 {[%emt 0:03:31]} 26. Ka3 {[%emt 0:01:30] [#]} h5 $1 {[%emt 0:01:07]} 27. Bf5 {[%emt 0:02:31]} c5 {[%emt 0:03:13]} 28. h4 {[%emt 0:07:23]} Rd3+ {[%emt 0:01:42]} 29. Bc3 {[%emt 0:00:33]} Nc6 {[%emt 0:00:29]} 30. Rf1 Nb4 {[%emt 0:00:27]} 31. Rc1 {[%emt 0:09:05]} Rf3 {[%emt 0:01:45]} 32. a5 {[%emt 0:01:18]} b5 {[%emt 0:00:11]} 33. Bh7 {[%emt 0:00:23]} Nd3 {[%emt 0:00:24]} 34. Rb1 {[%emt 0:00:55]} b4+ {[%emt 0:00:56]} 35. Ka4 {[%emt 0:00:05]} bxc3 {[%emt 0:01:49]} 36. bxc3 {[%emt 0:00:03]} Ra2+ {[%emt 0:00:59]} (36... a6 $142 37. Rb7+ Kf6 38. Ka3 Nb4 39. e5+ Kxe5 40. Bb1 Rxc3+ 41. Ka4 Rgg3 42. Bd3 Rcxd3 43. Rh7 Ra3#) 37. Kb5 {[%emt 0:00:02]} Rb2+ {[%emt 0:00:09]} 38. Rxb2 {[%emt 0:00:01]} Nxb2 {[%emt 0:00:04]} 39. Ka6 {[%emt 0:00:14]} Rxc3 {[%emt 0:00:41]} 40. Kxa7 {[%emt 0:00:13]} Nd3 $19 {[%emt 0:00:53]} 0-1

[Event "Satka Autumn 2017"]
[Site "Satka"]
[Date "2017.09.20"]
[Round "9"]
[White "Lomakina, Galja"]
[Black "Pogorelskikh, Sofia"]
[Result "1-0"]
[ECO "A04"]
[WhiteElo "1962"]
[BlackElo "2023"]
[Annotator "NA RC"]
[PlyCount "69"]
[EventDate "2017.??.??"]
[EventType "swiss"]
[EventCountry "RUS"]
[SourceTitle "playchess.com"]
[Source "ChessBase"]
[SourceQuality "1"]
[TimeControl "5400+30"]

{[%evp 30,69,7,12,0,0,15,-61,0,-12,0,0,0,0,0,0,287,32767,296,276,308,319,306,295,695,435,382,411,32767,32767,32767,32767,32767,32767,412,451,439,502,419,475,506,606]} 1. Nf3 {[%emt 0:00:00]} c5 {[%emt 0:00:18]} 2. d3 {[%emt 0:00:00]} Nc6 {[%emt 0:03:25]} 3. g3 {[%emt 0:00:00]} g6 {[%emt 0:00:41]} 4. Bg2 {[%emt 0:00:00]} Bg7 {[%emt 0:00:16]} 5. O-O {[%emt 0:00:07]} e6 {[%emt 0:00:19]} 6. e4 {[%emt 0:00:13]} Nge7 {[%emt 0:01:29]} 7. Nc3 {[%emt 0:00:17]} O-O {[%emt 0:01:32]} 8. Bg5 {[%emt 0:01:42]} h6 {[%emt 0:03:19] B24: Closed Sicilian: 3 g3 sidelines} 9. Be3 {[%emt 0:00:40]} d6 {[%emt 0:01:05]} (9... Nd4 10. Nd2 d5 11. f4 Nxc2 12. Qxc2 d4 13. Bf2 dxc3 14. bxc3 b6 15. Rfd1 e5 16. fxe5 Bxe5 {1-0 (42) Bryzgalin,K (2473)-Kurochkin,V (2423) Moscow 2006}) 10. Qd2 {[%emt 0:00:31]} Kh7 {[%emt 0:00:39]} 11. Rae1 {[%emt 0:00:25]} e5 $146 {[%emt 0:15:23]} ({Predecessor:} 11... Nd4 12. Nd1 e5 13. Nh4 g5 14. Bxd4 cxd4 15. Nf5 Bf6 16. f4 gxf4 17. gxf4 Nxf5 18. exf5 {0-1 (35) Egri,L-Lengyel,F (2285) Budapest 1993}) 12. Nh4 {[%emt 0:03:59]} Be6 {[%emt 0:05:43]} 13. f4 {[%emt 0:01:39]} exf4 {[%emt 0:08:00]} 14. gxf4 {[%emt 0:00:11]} f5 {[%emt 0:01:09]} 15. Kh1 {[%emt 0:05:58]} Qd7 {[%emt 0:05:21]} 16. Rg1 {[%emt 0:03:15]} Nd4 {[%emt 0:04:04]} 17. Bf2 {[%emt 0:05:50]} Rae8 {[%emt 0:04:09]} 18. b3 {[%emt 0:04:52]} (18. Nd1 $11) 18... b6 {[%emt 0:05:35]} 19. Nd1 {[%emt 0:01:23]} fxe4 {[%emt 0:03:21]} 20. dxe4 {[%emt 0:03:32]} d5 {[%emt 0:02:16]} 21. c3 {[%emt 0:01:03]} Ndc6 $1 {[%emt 0:03:08]} 22. exd5 {[%emt 0:02:31]} Nxd5 $2 {[%emt 0:05:33] [#]} (22... Bxd5 $11 {and Black stays safe.} 23. Bxd5 Qxd5+ 24. Qxd5 Nxd5) 23. Nxg6 $1 {[%emt 0:05:58]} Rf6 {[%emt 0:04:08]} 24. Be4 {[%emt 0:03:36]} Kg8 {[%emt 0:01:05] [#]} 25. Bh4 $1 {[%emt 0:07:12]} Rf7 {[%emt 0:01:19]} 26. f5 {[%emt 0:03:57]} Nxc3 $2 {[%emt 0:04:41]} (26... Nf6 27. Qxd7 (27. fxe6 Qxd2 28. Bxc6 Rc7 $14) 27... Bxd7) 27. Qxd7 {[%emt 0:11:00]} Bxd7 {[%emt 0:00:30]} 28. Nxc3 {[%emt 0:02:24]} Bxc3 {[%emt 0:00:10]} 29. Ne5+ {[%emt 0:04:13]} Kf8 {[%emt 0:09:07]} 30. Nxd7+ {[%emt 0:02:19]} Rxd7 {[%emt 0:00:10]} 31. Bxc6 {[%emt 0:00:17]} Bxe1 {[%emt 0:00:37]} 32. Bxe1 {[%emt 0:01:22]} Rf7 {[%emt 0:01:01]} 33. Bxe8 {[%emt 0:00:31]} Kxe8 {[%emt 0:00:05]} 34. Rf1 {[%emt 0:01:13]} Ke7 {[%emt 0:00:15] [#]} 35. f6+ $18 {[%emt 0:00:42]} 1-0

[Event "Satka Autumn 2017"]
[Site "Satka"]
[Date "2017.09.20"]
[Round "9"]
[White "Chan, Naruna"]
[Black "Simakova, Elena"]
[Result "1-0"]
[ECO "B22"]
[WhiteElo "1951"]
[BlackElo "1951"]
[Annotator "NA RC"]
[PlyCount "105"]
[EventDate "2017.??.??"]
[EventType "swiss"]
[EventCountry "RUS"]
[SourceTitle "playchess.com"]
[Source "ChessBase"]
[SourceQuality "1"]
[TimeControl "5400+30"]

{[%evp 32,101,47,7,32,33,37,24,29,44,43,37,65,42,53,36,39,17,75,38,89,91,129,106,218,259,246,266,214,75,91,56,34,57,64,55,121,-41,0,-7,122,0,136,95,144,132,164,87,32767,32767,32767,32767,32767,32767,32767,32767,32767,32767,32767,32767,32767,32767,32767,32767,32767,32767,32767,32767,32767,169,1085,1347]} 1. e4 {[%emt 0:00:00]} c5 {[%emt 0:00:02]} 2. c3 {[%emt 0:00:00]} d5 {[%emt 0:00:06]} 3. exd5 {[%emt 0:00:00]} Qxd5 {[%emt 0:00:05]} 4. d4 {[%emt 0:00:00]} Nf6 {[%emt 0:00:09]} 5. Nf3 {[%emt 0:00:00]} e6 {[%emt 0:00:09]} 6. Be3 {[%emt 0:01:30]} cxd4 {[%emt 0:00:24]} 7. cxd4 {[%emt 0:01:07]} Be7 {[%emt 0:00:40]} 8. Nc3 {[%emt 0:00:10]} Qd6 {[%emt 0:00:17]} 9. Bd3 {[%emt 0:00:37]} O-O {[%emt 0:00:47]} 10. O-O {[%emt 0:00:14]} Nc6 {[%emt 0:02:00]} 11. a3 {[%emt 0:00:42]} b6 {[%emt 0:02:29]} 12. Rc1 {[%emt 0:02:29]} Bb7 {[%emt 0:01:34] B22: Sicilian: 2 c3} 13. Bb1 {[%emt 0:01:22]} Rac8 {[%emt 0:05:20]} 14. Qd3 {[%emt 0:02:00]} Rfd8 {[%emt 0:12:06]} 15. Rfd1 {[%emt 0:03:42]} g6 {[%emt 0:05:15]} 16. Ba2 {[%emt 0:08:20]} Kg7 $146 {[%emt 0:17:09]} ({Predecessor:} 16... Qb8 17. Qe2 Rd7 18. h3 Re8 19. Bh6 Bf8 20. Bg5 {½-½ (60) Toufighi,H (2429)-Alavi,S (2454) Mashhad 2015}) 17. Qe2 {[%emt 0:04:19]} Nd5 {[%emt 0:06:20]} 18. Nxd5 {[%emt 0:10:53]} exd5 {[%emt 0:00:10]} 19. h4 {[%emt 0:03:40]} Kg8 {[%emt 0:12:41]} 20. h5 {[%emt 0:05:44]} Re8 {[%emt 0:05:42]} 21. Qd2 {[%emt 0:06:48]} Bf6 {[%emt 0:03:00]} 22. Bf4 {[%emt 0:09:32]} Qd7 {[%emt 0:03:15]} 23. Bg5 {[%emt 0:07:40]} Bh8 {[%emt 0:04:00]} 24. Rc3 {[%emt 0:07:23]} Re4 {[%emt 0:03:20]} 25. Bb1 {[%emt 0:00:35]} Re6 {[%emt 0:00:51]} 26. Qf4 {[%emt 0:00:49]} Qc7 {[%emt 0:04:54]} 27. Qh4 {[%emt 0:00:38]} f6 {[%emt 0:00:49]} (27... Qd7 $16 {was called for.}) 28. Bf4 {[%emt 0:09:44]} ({Don't play} 28. hxg6 $6 hxg6 29. Bd2 Qg7 $16) 28... Qf7 {[%emt 0:00:10]} 29. Qg3 {[%emt 0:01:14]} ({Much less strong is} 29. hxg6 $6 hxg6 30. Qg3 f5 $18) 29... Ne7 {[%emt 0:02:06]} 30. Nh4 $2 {[%emt 0:01:13]} (30. Rxc8+ $18 Bxc8 31. hxg6 hxg6 32. Rc1) 30... Rxc3 {[%emt 0:02:02]} 31. bxc3 {[%emt 0:00:15]} g5 {[%emt 0:00:36]} 32. Nf5 {[%emt 0:00:31]} Qxh5 {[%emt 0:00:45]} 33. Rc1 $1 {[%emt 0:02:13]} Bg7 {[%emt 0:02:09]} ({Black should play} 33... Bc8 $14) 34. Be3 {[%emt 0:02:57]} (34. Bd6 $16 Nxf5 35. Bxf5) 34... Nxf5 {[%emt 0:01:09]} 35. Bxf5 {[%emt 0:00:08]} Re8 {[%emt 0:00:08]} (35... Re7 $1 $11) 36. Bd7 $2 {[%emt 0:00:52]} (36. Qc7 $18 Qf7 {[#]} 37. Bxh7+ $1 {[%mdl 512]} Kf8 38. Qh2) 36... Rf8 {[%emt 0:02:48]} (36... Re7 $1 $11 {keeps the balance.} 37. Qb8+ Bf8 38. Qxb7 Qf7) 37. Qc7 {[%emt 0:03:43]} Ba6 {[%emt 0:00:45]} 38. Qxa7 {[%emt 0:00:10]} Bc4 {[%emt 0:01:01]} 39. Bf5 {[%emt 0:00:59]} (39. Qxb6 $18 f5 40. Qe6+ Kh8 41. Bd2) 39... b5 {[%emt 0:00:29]} 40. Qd7 {[%emt 0:00:14]} Qe8 {[%emt 0:00:41]} 41. Qd6 {[%emt 0:00:36]} Kh8 {[%emt 0:01:12]} 42. Qh2 {[%emt 0:00:31]} h6 {[%emt 0:00:39]} 43. Qh3 {[%emt 0:00:16]} Qf7 {[%emt 0:00:36]} 44. Be6 {[%emt 0:02:06]} Qe7 {[%emt 0:00:07]} 45. Bf5 {[%emt 0:00:08]} Qf7 {[%emt 0:00:07]} 46. Ra1 {[%emt 0:01:08]} Ra8 {[%emt 0:00:51]} 47. g3 {[%emt 0:02:17]} Bf8 {[%emt 0:00:55]} 48. Kg2 {[%emt 0:00:23]} Kg7 {[%emt 0:00:48]} 49. Rh1 {[%emt 0:00:22]} h5 {[%emt 0:00:42] [#]} 50. Bg4 $1 {[%emt 0:01:05]} h4 $2 {[%emt 0:00:27]} (50... Bd3) 51. gxh4 $18 {[%emt 0:00:11]} gxh4 {[%emt 0:00:34]} 52. Bh6+ {[%emt 0:00:20]} Kg8 {[%emt 0:00:14]} 53. Be6 {[%emt 0:00:03]} 1-0